bitfinex-derivatives/quotes_ETHF0:USTF0_20250314
["timestamp","ask_amount","ask_price","bid_price","bid_amount"]
[1741995692260,1.04409,1915.5,1915.4,5.71322]
[1741995693170,1.04409,1915.5,1915.4,4.6691]
[1741995693362,1.3428,1915.7,1915.4,4.6691]
[1741995693564,1.3428,1915.7,1915.5,1.4613]
[1741995693760,1.3428,1915.7,1915.5,2.50536]
[1741995694072,1.3428,1915.7,1915.6,1.04403]
[1741995694262,1.3428,1915.7,1915.6,2.50533]
[1741995694462,2.3868,1915.7,1915.6,1.4613]
[1741995694871,1.3428,1915.7,1915.6,2.50533]
[1741995696477,2.38678,1915.7,1915.6,2.50533]
[1741995697174,2.38678,1915.7,1915.6,1.4613]
[1741995697468,2.38678,1915.7,1915.6,2.50533]
[1741995697966,1.3428,1915.7,1915.6,2.50533]
[1741995698971,1.3428,1915.7,1915.6,3.21293]
[1741995700667,1.04392,1915.8,1915.7,1.04398]
[1741995700868,3.2078,1915.9,1915.8,1.04392]
[1741995701067,3.2078,1915.9,1915.8,1.74492]
[1741995701267,2.37347,1915.9,1915.8,1.74492]
[1741995701471,2.37347,1915.9,1915.8,0.701]
[1741995701772,2.37347,1915.9,1915.8,3.18472]
[1741995702273,2.37347,1915.9,1915.8,2.1408]
[1741995702473,2.37347,1915.9,1915.8,3.18472]
[1741995702670,2.37347,1915.9,1915.8,2.1408]
[1741995703266,2.37347,1915.9,1915.8,1.04392]
[1741995703571,2.37347,1915.9,1915.6,1.4086]
[1741995703572,1.04398,1915.7,1915.6,1.4086]
[1741995703871,1.04398,1915.7,1915.6,4.1396]
[1741995704079,1.0441,1915.5,1915.4,3.433]
[1741995704273,1.0441,1915.5,1915.4,4.84]
[1741995704776,3.207,1915.5,1915.4,4.84]
[1741995705271,3.207,1915.5,1915.4,1.407]
[1741995705473,1.0442,1915.3,1915.2,1.04421]
[1741995705669,1.0442,1915.3,1915.2,3.434]
[1741995705972,1.4611,1915.4,1915.2,1.04424]
[1741995706173,2.50526,1915.4,1915.2,2.4512]
[1741995706379,1.0442,1915.3,1915.2,2.4512]
[1741995706675,2.5053,1915.3,1915.2,1.0442]
[1741995706869,1.4611,1915.3,1915.2,1.0442]
[1741995707067,2.5053,1915.3,1915.2,1.0442]
[1741995707469,1.4611,1915.3,1915.2,1.0442]
[1741995707675,2.5053,1915.3,1915.1,8.01221922]
[1741995707871,1.4611,1915.3,1915.2,1.04425]
[1741995708477,1.4611,1915.3,1915.1,8.01221922]
[1741995708677,2.50531,1915.3,1915.2,1.04425]
[1741995710185,2.50531,1915.3,1915.1,8.01221922]
[1741995710477,0.7018,1915.5,1915.2,1.04425]
[1741995711179,1.04419,1915.4,1915.2,1.04421]
[1741995711378,1.04418,1915.4,1915.2,1.04421]
[1741995711579,3.31203,1915.5,1915.1,8.01221922]
[1741995711776,1.04425,1915.2,1915.1,8.01221922]
[1741995712179,1.04425,1915.2,1915.1,9.05652922]
[1741995712881,1.04425,1915.2,1915.1,8.01221922]
[1741995713176,1.04425,1915.2,1915.1,1.37041922]
[1741995714670,1.04425,1915.2,1915.1,0.00781922]
[1741995716177,4.25205,1915.2,1915.1,0.00781922]
[1741995716779,1.04421,1915.3,1915.1,0.00781922]
[1741995716986,1.04423,1915.3,1915.1,2.42987922]
[1741995717889,1.04423,1915.3,1915.2,1.04425]
[1741995718676,3.2078,1915.4,1915.1,1.38561922]
[1741995718879,4.25197,1915.4,1915.1,1.38561922]
[1741995719087,3.2078,1915.4,1915.3,1.0442]
[1741995719291,3.2078,1915.4,1915.2,1.04421]
[1741995719292,4.25198,1915.4,1915.2,1.04421]
[1741995719786,4.25198,1915.4,1915.1,1.38561922]
[1741995719989,9.0918,1915.7,1915.2,5.8184]
[1741995720192,1.04403,1915.6,1915.3,3.429]
[1741995720380,1.04403,1915.6,1915.4,1.04412]
[1741995720687,4.25182,1915.7,1915.5,1.04409]
[1741995720876,4.25182,1915.7,1915.5,1.71659]
[1741995721081,1.04397,1915.8,1915.6,1.04403]
[1741995721379,1.04397,1915.8,1915.5,0.6725]
[1741995721380,1.04397,1915.8,1915.7,1.04398]
[1741995721577,1.04397,1915.8,1915.6,1.044]
[1741995722082,1.04397,1915.8,1915.7,0.6935]
[1741995722989,2.41687,1915.8,1915.7,0.6935]
[1741995723385,2.41687,1915.8,1915.7,2.032]
[1741995723687,1.05165922,1916.0,1915.9,1.04387]
[1741995723991,0.00781922,1916.0,1915.8,1.3385]
[1741995724195,0.00781922,1916.0,1915.9,1.73997]
[1741995724488,1.05163922,1916.0,1915.9,0.6961]
[1741995725189,1.05163922,1916.0,1915.9,2.1294]
[1741995725791,2.38743922,1916.0,1915.9,2.1294]
[1741995725987,1.34361922,1916.0,1915.7,1.73748]
[1741995726292,1.04398,1915.7,1915.6,8.38563]
[1741995726590,4.5436,1915.9,1915.6,4.25183]
[1741995726591,1.04397,1915.8,1915.6,4.25183]
[1741995726790,2.37977,1915.8,1915.7,1.4333]
[1741995726985,2.37977,1915.8,1915.7,2.47728]
[1741995727192,2.37977,1915.8,1915.7,1.4333]
[1741995727591,3.06627,1915.8,1915.7,1.4333]
[1741995730296,1.04398,1915.7,1915.6,0.7011]
[1741995730596,2.49288,1915.7,1915.6,2.1059]
[1741995731494,4.05893,1915.7,1915.4,3.2078]
[1741995731700,1.04414,1915.5,1915.4,1.04414]
[1741995731899,1.04414,1915.5,1915.4,1.4293]
[1741995733002,2.39294,1915.5,1915.4,2.47344]
[1741995733203,1.3488,1915.5,1915.4,2.47344]
[1741995734496,2.39289,1915.5,1915.4,2.47344]
[1741995735203,1.3488,1915.5,1915.4,2.47344]
[1741995736203,3.2078,1915.7,1915.6,1.04403]
[1741995736504,4.6442,1915.7,1915.6,1.04403]
[1741995736898,1.4364,1915.7,1915.6,1.71433]
[1741995739209,2.48038,1915.7,1915.6,1.71433]
[1741995740807,2.48038,1915.7,1915.6,0.6703]
[1741995741109,2.48038,1915.7,1915.6,1.71433]
[1741995741309,2.48038,1915.7,1915.6,3.10523]
[1741995744716,1.4364,1915.7,1915.6,3.10523]
[1741995745011,2.48038,1915.7,1915.6,2.0612]
[1741995745801,1.4364,1915.7,1915.6,3.10523]
[1741995746004,3.2078,1915.9,1915.8,1.04392]
[1741995746609,3.2078,1915.9,1915.8,2.43992]
[1741995746812,1.3487,1915.9,1915.8,2.43992]
[1741995747409,2.39257,1915.9,1915.8,2.43992]
[1741995747807,2.39257,1915.9,1915.8,5.64772]
[1741995748908,1.3487,1915.9,1915.8,5.64772]
[1741995750206,0.00781922,1916.0,1915.9,1.04387]
[1741995750418,0.00781922,1916.0,1915.9,6.53957]
[1741995754621,0.00781922,1916.0,1915.9,2.0867]
[1741995754914,1.04403,1915.7,1915.5,3.2078]
[1741995755122,1.4519,1915.6,1915.5,4.25187]
[1741995755320,1.4519,1915.6,1915.5,5.70067]
[1741995755714,1.04391,1915.9,1915.8,1.04392]
[1741995755915,2.42031,1915.9,1915.6,2.1111]
[1741995756115,2.42031,1915.9,1915.7,1.4435]
[1741995756317,1.3764,1915.8,1915.7,3.15444]
[1741995756917,1.3764,1915.8,1915.7,6.57244]
[1741995757220,3.94001922,1916.0,1915.9,1.04387]
[1741995757422,3.21561922,1916.0,1915.9,1.04387]
[1741995757723,0.00781922,1916.0,1915.9,1.04387]
[1741995757926,0.00781922,1916.0,1915.9,1.71147]
[1741995758611,2.51263922,1916.0,1915.9,0.6676]
[1741995758820,2.51263922,1916.0,1915.9,1.9977]
[1741995759317,1.04389,1915.9,1915.7,5.4151]
[1741995759512,1.04389,1915.9,1915.8,1.3301]
[1741995759717,1.04387,1915.9,1915.7,5.12894]
[1741995760023,1.04387,1915.9,1915.7,6.45904]
[1741995760426,1.04387,1915.9,1915.8,1.04392]
[1741995760621,1.05166922,1916.0,1915.9,1.04387]
[1741995761221,1.05166922,1916.0,1915.9,1.3301]
[1741995761813,1.04387,1915.9,1915.8,0.7211]
[1741995762018,1.04387,1915.9,1915.8,2.0758]
[1741995762214,0.00781922,1916.0,1915.8,3.11972]
[1741995762524,1.04387,1915.9,1915.8,3.11972]
[1741995762728,0.00781922,1916.0,1915.8,3.11972]
[1741995762921,1.04387,1915.9,1915.8,3.11972]
[1741995763122,1.04387,1915.9,1915.7,5.12894]
[1741995763315,1.04387,1915.9,1915.7,6.48364]
[1741995763520,1.04387,1915.9,1915.8,1.3547]
[1741995763823,1.05165922,1916.0,1915.8,2.39862]
[1741995764420,1.04387,1915.9,1915.8,1.3547]
[1741995765521,1.04392,1915.8,1915.7,6.45938]
[1741995765719,1.04392,1915.8,1915.7,5.12898]
[1741995766324,1.04392,1915.8,1915.7,4.7484]
[1741995766723,1.04387,1915.9,1915.7,5.79238]
[1741995766919,0.00781922,1916.0,1915.7,5.79238]
[1741995767125,1.04392,1915.8,1915.7,5.79238]
[1741995767325,1.04392,1915.8,1915.7,4.7484]
[1741995767519,1.04392,1915.8,1915.7,5.79238]
[1741995769830,0.00781922,1916.0,1915.7,5.79238]
[1741995770025,1.04392,1915.8,1915.7,5.79238]
[1741995770329,1.04391,1915.9,1915.7,5.79238]
[1741995770530,1.04392,1915.8,1915.7,5.79238]
[1741995770716,3.2078,1915.9,1915.6,0.6727]
[1741995770921,1.3533,1915.8,1915.6,6.45701]
[1741995771226,2.39722,1915.8,1915.7,1.3313]
[1741995771827,2.39722,1915.8,1915.7,2.37528]
[1741995772319,2.39722,1915.8,1915.7,1.3313]
[1741995772721,3.83682,1915.8,1915.7,1.3313]
[1741995773127,3.83682,1915.8,1915.7,2.37528]
[1741995773329,3.83682,1915.8,1915.7,1.3313]
[1741995774431,1.04398,1915.7,1915.6,1.71673]
[1741995774635,2.37798,1915.7,1915.6,3.16863]
[1741995775331,1.334,1915.7,1915.6,6.37643]
[1741995775635,1.05167922,1916.0,1915.8,1.04389]
[1741995775927,2.37787,1915.9,1915.8,1.04389]
[1741995776327,2.37787,1915.9,1915.6,3.8805]
[1741995776524,1.334,1915.8,1915.7,1.04398]
[1741995779527,0.00781922,1916.0,1915.9,1.04387]
[1741995779836,2.50633922,1916.0,1915.9,1.04387]
[1741995780030,2.50633922,1916.0,1915.9,1.75647]
[1741995780230,2.50633922,1916.0,1915.9,2.47567]
[1741995781830,1.46251922,1916.0,1915.9,2.47567]
[1741995786035,2.50633922,1916.0,1915.9,2.47567]
[1741995787539,1.46251922,1916.0,1915.9,2.47567]
[1741995788829,2.60902,1916.4,1915.9,2.47567]
[1741995788830,5.81667,1916.5,1916.2,1.04368]
[1741995789034,1.04371,1916.3,1916.2,1.04368]
[1741995789837,1.04371,1916.3,1916.2,1.73078]
[1741995790040,2.37401,1916.3,1916.2,1.73078]
[1741995790839,2.37401,1916.3,1916.2,0.6871]
[1741995791440,2.37401,1916.3,1916.2,1.73081]
[1741995792741,2.37401,1916.3,1916.2,3.17661]
[1741995793837,2.37401,1916.3,1916.2,2.1329]
[1741995794033,1.04339,1916.8,1916.4,2.60897]
[1741995794243,2.42421,1916.8,1916.6,1.04345]
[1741995794538,2.42423,1916.8,1916.7,1.4458]
[1741995794743,1.04343,1916.8,1916.7,1.4458]
[1741995795143,1.04346,1916.7,1916.5,5.1238]
[1741995795445,2.46146,1916.7,1916.5,6.4855]
[1741995795740,1.04349,1916.6,1916.5,3.392]
[1741995795939,1.04349,1916.6,1916.5,4.7537]
[1741995796647,2.46144,1916.7,1916.6,1.04349]
[1741995796834,2.46144,1916.7,1916.6,1.3617]
[1741995798845,2.46144,1916.7,1916.5,3.392]
[1741995798846,1.04349,1916.6,1916.5,3.392]
[1741995799848,1.04349,1916.6,1916.5,4.759]
[1741995800551,1.04349,1916.6,1916.5,3.392]
[1741995801047,2.46147,1916.7,1916.5,3.392]
[1741995801350,2.46147,1916.7,1916.6,1.3803]
[1741995801752,2.46147,1916.7,1916.6,2.42379]
[1741995801949,2.46147,1916.7,1916.6,1.3803]
[1741995802346,1.418,1916.7,1916.6,2.42379]
[1741995802852,2.46143,1916.7,1916.6,2.42379]
[1741995803453,2.46143,1916.7,1916.6,1.3803]
[1741995804452,1.04343,1916.7,1916.6,1.3803]
[1741995804653,0.00781922,1916.9,1916.8,1.04338]
[1741995804849,0.00781922,1916.9,1916.8,7.64818]
[1741995805053,0.00781922,1916.9,1916.8,8.96928]
[1741995805855,1.05114922,1916.9,1916.8,8.96928]
[1741995806152,0.00781922,1916.9,1916.8,8.96928]
[1741995806455,1.05114922,1916.9,1916.8,8.96928]
[1741995806650,1.05114922,1916.9,1916.8,7.9259]
[1741995808658,1.04348,1916.7,1916.6,3.2078]
[1741995808962,1.04348,1916.7,1916.5,1.04351]
[1741995808963,1.04349,1916.6,1916.5,2.7751]
[1741995809256,1.04349,1916.6,1916.5,5.4495]
[1741995811153,1.71098,1916.7,1916.5,6.49304]
[1741995811461,1.04348,1916.7,1916.6,1.3856]
[1741995812860,2.39118,1916.7,1916.6,1.3856]
[1741995814260,1.04349,1916.6,1916.5,3.399]
[1741995814561,1.04354,1916.5,1916.4,3.2078]
[1741995814759,1.04354,1916.5,1916.4,3.395]
[1741995814760,2.41934,1916.5,1916.4,3.395]
[1741995814959,1.0436,1916.4,1916.3,28.938]
[1741995815160,1.4242,1916.4,1916.1,2.03101922]
[1741995815359,1.4242,1916.4,1916.1,3.40481922]
[1741995815360,1.04371,1916.2,1916.1,3.40481922]
[1741995815759,3.14701,1916.2,1916.1,3.40481922]
[1741995816768,3.14701,1916.2,1916.1,0.00781922]
[1741995818659,3.14701,1916.2,1916.1,1.42861922]
[1741995819674,1.04371,1916.2,1916.1,1.42861922]
[1741995820570,2.41281,1916.2,1916.1,1.42861922]
[1741995825674,2.41281,1916.2,1916.1,0.00781922]
[1741995837074,2.41281,1916.2,1915.7,33.662]
[1741995837075,1.04392,1915.8,1915.7,0.6702]
[1741995837476,1.04398,1915.7,1915.6,4.7899]
[1741995839280,1.04398,1915.7,1915.6,5.83393]
[1741995840181,1.04398,1915.7,1915.6,4.7899]
[1741995841072,1.04398,1915.7,1915.6,5.83393]
[1741995841272,1.04398,1915.7,1915.6,4.7899]
[1741995841474,1.04398,1915.7,1915.6,5.83393]
[1741995842174,1.04398,1915.7,1915.6,4.7899]
[1741995843285,1.04398,1915.7,1915.6,5.83393]
[1741995844683,1.04398,1915.7,1915.6,4.7899]
[1741995845183,1.04398,1915.7,1915.6,5.83393]
[1741995848280,1.04398,1915.7,1915.6,4.7899]
[1741995848687,1.04398,1915.7,1915.6,5.83393]
[1741995849483,1.04398,1915.7,1915.6,4.7789]
[1741995850080,1.04398,1915.7,1915.6,1.4019]
[1741995853786,1.76598,1915.7,1915.6,1.4019]
[1741995853987,3.09028,1915.7,1915.6,1.4019]
[1741995857380,1.0442,1915.3,1915.2,4.25202]
[1741995857582,1.0442,1915.3,1915.2,9.00592]
[1741995858382,1.0442,1915.3,1915.2,4.5887]
[1741995858580,1.04425,1915.2,1915.1,28.95281922]
[1741995858781,2.49335,1915.2,1915.1,30.32251922]
[1741995859381,2.49335,1915.2,1915.1,31.36682922]
[1741995859789,2.49335,1915.2,1915.1,32.78222922]
[1741995860291,1.4491,1915.2,1915.1,32.78222922]
[1741995861584,2.49335,1915.2,1915.1,32.78222922]
[1741995864087,2.49335,1915.2,1915.1,31.73791922]
[1741995864290,5.70115,1915.2,1915.1,0.00781922]
[1741995864592,1.04456,1914.7,1914.5,3.2078]
[1741995864889,1.04452,1914.7,1914.6,2.37978]
[1741995865091,1.04452,1914.7,1914.6,1.3352]
[1741995865299,1.04452,1914.7,1914.6,2.37978]
[1741995866186,0.00781922,1914.8,1914.6,2.37975]
[1741995866390,0.00781922,1914.8,1914.6,1.04455]
[1741995866993,1.05232922,1914.8,1914.6,1.04455]
[1741995867181,1.05232922,1914.8,1914.7,1.04452]
[1741995867182,0.00781922,1914.8,1914.7,1.04452]
[1741995867588,1.05228922,1914.8,1914.7,1.04452]
[1741995867892,0.00781922,1914.8,1914.7,1.04452]
[1741995868091,0.00781922,1914.8,1914.7,4.25232]
[1741995869886,1.05228922,1914.8,1914.7,4.25232]
[1741995870092,0.00781922,1914.8,1914.7,4.25232]
[1741995871492,1.05228922,1914.8,1914.7,4.25232]
[1741995871798,1.05228922,1914.8,1914.7,6.5928]
[1741995872190,1.04458,1914.6,1914.5,0.00781922]
[1741995872391,2.61177,1914.4,1913.9,3.2078]
[1741995872599,6.59054,1914.7,1913.5,3.2078]
[1741995872600,2.61227,1914.0,1913.5,3.2078]
[1741995872898,4.7938,1913.9,1913.5,3.2078]
[1741995873088,1.3678,1913.9,1913.6,1.0451]
[1741995873398,1.04506,1913.8,1913.6,1.0451]
[1741995873695,1.73966,1913.9,1913.7,4.25285]
[1741995873901,0.6947,1913.9,1913.8,1.04502]
[1741995874197,3.2078,1914.1,1913.7,7.3461]
[1741995874198,4.25267,1914.1,1913.7,7.3461]
[1741995874398,4.25265,1914.1,1913.9,1.04492]
[1741995874598,3.2078,1914.1,1913.9,1.04492]
[1741995874799,1.04488,1914.1,1913.9,1.04492]
[1741995875098,1.04479,1914.3,1914.1,1.04484]
[1741995875494,1.76391,1914.4,1914.2,1.0448]
[1741995875700,3.927,1914.4,1914.1,0.6913]
[1741995875999,4.97173,1914.4,1914.2,1.04478]
[1741995876195,1.04476,1914.3,1914.1,1.73612]
[1741995877199,1.0448,1914.2,1914.1,0.6913]
[1741995877397,1.04497,1913.9,1913.7,5.62653]
[1741995877898,1.04497,1913.9,1913.7,9.07753]
[1741995878201,1.04495,1914.0,1913.7,9.07753]
[1741995878403,3.2078,1914.2,1913.7,8.0325]
[1741995878593,1.04499,1913.9,1913.7,9.07757]
[1741995878795,1.04494,1914.0,1913.8,1.04499]
[1741995878995,9.0918,1914.2,1913.7,8.0325]
[1741995879195,1.04495,1914.0,1913.8,1.045]
[1741995879699,9.0918,1914.2,1913.7,8.0325]
[1741995879896,1.04496,1913.9,1913.7,9.07755]
[1741995880101,9.0918,1914.2,1913.7,8.0325]
[1741995880102,1.04502,1913.8,1913.7,8.0325]
[1741995880509,2.61215,1914.1,1913.7,8.0295]
[1741995880701,1.04502,1913.8,1913.7,8.0295]
[1741995880901,1.04502,1913.8,1913.7,3.2078]
[1741995881210,0.7111,1914.0,1913.7,3.2078]
[1741995881501,1.045,1913.9,1913.7,4.91957]
[1741995881807,1.75604,1914.0,1913.7,4.91952]
[1741995882005,0.7111,1914.0,1913.8,1.045]
[1741995882206,1.04497,1913.9,1913.7,4.91954]
[1741995882510,0.7111,1914.0,1913.7,3.8745]
[1741995882901,2.36666,1913.9,1913.8,1.4389]
[1741995883107,1.04502,1913.8,1913.7,3.2078]
[1741995883405,2.40232,1913.8,1913.7,4.6576]
[1741995883602,1.04507,1913.7,1913.6,0.72921922]
[1741995883804,2.40237,1913.7,1913.6,3.22413922]
[1741995884001,2.40237,1913.7,1913.6,2.17901922]
[1741995884202,1.3573,1913.7,1913.6,3.22413922]
[1741995884504,1.3573,1913.7,1913.6,6.43193922]
[1741995884708,2.40237,1913.7,1913.6,6.43193922]
[1741995885011,1.3573,1913.7,1913.6,6.43193922]
[1741995885406,2.40237,1913.7,1913.6,6.43193922]
[1741995885606,1.3573,1913.7,1913.6,6.43193922]
[1741995885910,0.00781922,1913.8,1913.7,1.04507]
[1741995886111,1.05283922,1913.8,1913.7,1.4498]
[1741995886500,1.05283922,1913.8,1913.7,2.49487]
[1741995886701,1.05283922,1913.8,1913.7,1.4498]
[1741995889801,1.04507,1913.7,1913.6,3.93701922]
[1741995890006,2.43147,1913.7,1913.6,0.00781922]
[1741995890212,3.14717,1913.7,1913.6,0.00781922]
[1741995890513,3.14717,1913.7,1913.6,1.05293922]
[1741995890710,3.14717,1913.7,1913.6,2.51263922]
[1741995890910,2.43147,1913.7,1913.6,2.51263922]
[1741995891505,2.43147,1913.7,1913.6,1.46751922]
[1741995894417,2.43147,1913.7,1913.6,0.00781922]
[1741995894710,2.43147,1913.7,1913.0,8.46963]
[1741995894711,1.04545,1913.0,1912.9,0.07997628]
[1741995895009,1.04563,1912.7,1912.5,1.04569]
[1741995895334,1.04559,1912.8,1912.5,4.5642]
[1741995895511,1.428,1912.7,1912.6,3.2078]
[1741995895714,2.47366,1912.7,1912.5,1.0457]
[1741995895908,1.428,1912.7,1912.4,4.555]
[1741995896109,1.428,1912.6,1912.5,5.60071]
[1741995896310,1.428,1912.6,1912.5,1.04573]
[1741995896614,3.21563986,1912.8,1912.7,1.04562]
[1741995896813,0.00783986,1912.8,1912.7,1.04562]
[1741995897013,1.428,1913.0,1912.9,1.04551]
[1741995897210,3.2078,1913.3,1912.9,3.46]
[1741995897408,1.428,1913.2,1913.1,1.04537]
[1741995897608,4.25311,1913.3,1913.1,0.68]
[1741995897807,5.68111,1913.3,1913.2,3.2078]
[1741995898018,5.68111,1913.3,1913.2,4.94304]
[1741995898215,3.2078,1913.3,1913.2,4.94304]
[1741995898515,4.25309,1913.3,1913.2,3.8977]
[1741995898711,3.2078,1913.3,1913.2,4.94304]
[1741995899109,3.2078,1913.3,1913.2,3.2078]
[1741995899310,5.61143,1913.3,1913.2,3.2078]
[1741995900011,6.30603,1913.3,1913.2,3.2078]
[1741995900308,4.5661,1913.3,1913.2,4.25314]
[1741995900508,1.05308986,1913.4,1913.3,1.04529]
[1741995900705,0.00783986,1913.4,1913.3,4.25309]
[1741995901507,0.00783986,1913.4,1913.3,3.2078]
[1741995901812,2.47426986,1913.4,1913.3,7.71909]
[1741995902019,1.42903986,1913.4,1913.3,7.71909]
[1741995902319,2.47426986,1913.4,1913.3,7.71909]
[1741995902515,1.42903986,1913.4,1913.3,7.71909]
[1741995902716,0.00783986,1913.4,1913.3,7.71909]
[1741995903110,0.00783986,1913.4,1913.3,10.92689]
[1741995903315,0.00783986,1913.4,1913.3,7.71909]
[1741995906023,3.2078,1913.8,1913.7,1.04507]
[1741995906213,5.65702,1913.8,1913.7,3.2078]
[1741995907919,5.65702,1913.8,1913.7,4.25287]
[1741995908623,4.612,1913.8,1913.7,4.25287]
[1741995909314,5.65702,1913.8,1913.7,4.95277]
[1741995909722,2.44922,1913.8,1913.7,4.95277]
[1741995910421,1.4042,1913.8,1913.7,4.95277]
[1741995910723,0.00783986,1913.9,1913.8,1.04502]
[1741995910920,1.37743986,1913.9,1913.8,4.25282]
[1741995911321,2.42239986,1913.9,1913.8,4.25282]
[1741995911525,1.37743986,1913.9,1913.8,4.25282]
[1741995912427,2.42239986,1913.9,1913.8,4.25282]
[1741995912720,2.42239986,1913.9,1913.8,3.2078]
[1741995913028,1.04534,1913.2,1913.1,30.0264]
[1741995913228,1.04533,1913.3,1913.2,3.2078]
[1741995914129,3.2078,1913.3,1913.2,3.2078]
[1741995914332,5.68889,1913.3,1913.2,3.2078]
[1741995914930,4.6436,1913.3,1913.2,4.25314]
[1741995915130,10.85006,1913.6,1913.4,1.04519]
[1741995915431,4.96606,1913.6,1913.5,1.3708]
[1741995915631,1.04523,1913.4,1913.3,0.7026]
[1741995916127,1.04523,1913.4,1913.3,3.9104]
[1741995917428,1.04523,1913.4,1913.3,5.3644]
[1741995917929,2.48102,1913.5,1913.4,1.04523]
[1741995918128,1.4358,1913.5,1913.4,5.70703]
[1741995918329,2.48098,1913.5,1913.4,5.70703]
[1741995918629,2.48098,1913.5,1913.4,8.813]
[1741995918831,2.48098,1913.5,1913.4,6.6678]
[1741995919221,2.48098,1913.5,1913.4,8.1218]
[1741995919525,2.48098,1913.5,1913.4,6.6678]
[1741995921018,2.48098,1913.5,1913.4,3.2078]
[1741995921431,2.48098,1913.5,1913.4,4.6337]
[1741995922831,2.48098,1913.5,1913.4,5.67893]
[1741995923031,1.4358,1913.5,1913.4,5.67893]
[1741995923227,3.2078,1913.6,1913.5,1.04518]
[1741995923428,3.2078,1913.6,1913.5,9.84458]
[1741995923925,1.3303,1913.7,1913.6,1.04512]
[1741995924127,1.3303,1913.7,1913.6,5.68122]
[1741995925631,0.00783986,1913.9,1913.6,7.24892]
[1741995925834,0.00783986,1913.9,1913.8,1.04502]
[1741995926034,1.38583986,1913.9,1913.8,4.50702]
[1741995926232,1.38583986,1913.9,1913.8,9.15302]
[1741995926433,2.43079986,1913.9,1913.8,9.15302]
[1741995926735,1.38583986,1913.9,1913.8,9.15302]
[1741995927223,2.43079986,1913.9,1913.8,9.15302]
[1741995928437,1.38583986,1913.9,1913.8,9.15302]
[1741995928629,1.38583986,1913.9,1913.8,9.88342]
[1741995929233,0.00783986,1913.9,1913.8,9.88342]
[1741995929426,1.34363986,1913.9,1913.8,9.88342]
[1741995930534,9.0918,1914.4,1913.9,5.82021]
[1741995930733,1.04476,1914.3,1914.2,1.04475]
[1741995931231,1.0448,1914.2,1914.1,7.19231]
[1741995931622,1.0448,1914.2,1914.1,10.40011]
[1741995931827,1.05260986,1914.3,1914.2,1.04476]
[1741995932026,1.04485,1914.1,1914.0,0.00783986]
[1741995932230,1.04485,1914.1,1913.5,4.51316]
[1741995932231,1.04512,1913.6,1913.5,4.51316]
[1741995932537,3.2078,1913.7,1913.4,7.29263]
[1741995932734,2.47172,1913.6,1913.5,5.70098]
[1741995932926,1.04536,1913.2,1913.1,1.04539]
[1741995933127,1.04533,1913.3,1913.2,3.2078]
[1741995933340,1.04534,1913.2,1913.1,2.49339]
[1741995933525,1.04534,1913.2,1913.1,1.45583986]
[1741995933526,4.25314,1913.2,1913.1,1.45583986]
[1741995933728,4.25314,1913.2,1913.1,4.66363986]
[1741995934236,1.04534,1913.2,1913.1,5.70903986]
[1741995934632,1.04534,1913.2,1913.1,4.66363986]
[1741995934937,1.353,1913.3,1913.2,1.04534]
[1741995935133,1.353,1913.3,1913.2,5.60004]
[1741995935529,1.353,1913.3,1913.1,0.00783986]
[1741995935729,4.92044,1913.2,1913.1,3.21563986]
[1741995936133,4.92044,1913.2,1913.1,0.00783986]
[1741995936433,4.92044,1913.2,1913.1,3.21563986]
[1741995937332,3.2078,1913.2,1913.1,4.26103986]
[1741995938038,3.2078,1913.2,1913.1,5.58783986]
[1741995938432,4.25314,1913.2,1913.1,5.58783986]
[1741995938631,4.5374,1913.2,1913.1,5.58783986]
[1741995938831,5.58274,1913.2,1913.1,5.58783986]
[1741995939336,4.5374,1913.2,1913.1,5.58783986]
[1741995939843,5.58274,1913.2,1913.1,5.58783986]
[1741995940143,5.58274,1913.2,1913.1,6.98553986]
[1741995940341,5.58274,1913.2,1913.1,5.94013986]
[1741995941943,5.58274,1913.2,1913.1,6.98553986]
[1741995943738,4.25314,1913.2,1913.1,6.98553986]
[1741995943945,4.25314,1913.2,1913.1,5.94013986]
[1741995944443,4.25314,1913.2,1913.1,6.98553986]
[1741995945342,4.25314,1913.2,1913.1,5.94013986]
[1741995945945,4.25314,1913.2,1913.1,3.21563986]
[1741995946238,4.95574,1913.2,1913.1,3.21563986]
[1741995946437,4.95574,1913.2,1913.1,4.58613986]
[1741995949140,3.2078,1913.2,1913.1,5.63153986]
[1741995949340,3.2078,1913.2,1913.1,6.30203986]
[1741995950046,4.57963986,1913.4,1913.3,1.04529]
[1741995950247,4.26090986,1913.4,1913.3,1.04529]
[1741995950447,0.00783986,1913.4,1913.3,4.25309]
[1741995950648,1.05306986,1913.4,1913.3,5.64309]
[1741995951545,0.00783986,1913.4,1913.3,5.64309]
[1741995951743,1.05306986,1913.4,1913.3,9.10709]
[1741995952346,1.05306986,1913.4,1913.3,8.0618]
[1741995953044,2.48236986,1913.4,1913.3,8.0618]
[1741995953746,2.48236986,1913.4,1913.3,4.854]
[1741995953947,2.48236986,1913.4,1913.3,8.0618]
[1741995957545,2.48236986,1913.4,1913.3,4.5978]
[1741995957757,5.69016986,1913.4,1913.3,3.2078]
[1741995962055,5.69016986,1913.4,1913.3,4.593]
[1741995963257,4.26086986,1913.4,1913.3,4.593]
[1741995963467,4.26086986,1913.4,1913.3,5.2682]
[1741995964059,1.05306986,1913.4,1913.3,5.2682]
[1741995964256,4.26086986,1913.4,1913.3,5.2682]
[1741995964456,1.04534,1913.2,1913.1,0.00783986]
[1741995964657,4.25314,1913.2,1913.1,3.21563986]
[1741995964863,4.25314,1913.2,1913.1,0.00783986]
[1741995965065,6.31484,1913.2,1913.1,0.00783986]